[Event "Titled Tuesday Blitz January 10 Late 2023"]
[White "Shapiro, Bryan"]
[Black "Forgacs, Attila Jr."]
[WhiteFideId "2087740"]
[BlackFideId "773654"]
[WhiteElo "1972"]
[BlackElo "2264"]
[Result "1-0"]
[Round "03"]
[TimeControl "180+2"]
[Date "2023.01.10"]
[WhiteClock "0:00:07"]
[BlackClock "0:00:11"]

1. d4 {[%clk 0:00:00]}  Nf6 {[%clk 0:00:00]} 2. c4 {[%clk 0:02:10]}  g6 {[%clk 0:02:59]} 3. Nc3 {[%clk 0:02:10]}  Bg7 {[%clk 0:02:59]} 4. e4 {[%clk 0:02:10]}  d6 {[%clk 0:02:59]} 5. h3 {[%clk 0:02:08]}  O-O {[%clk 0:02:59]} 6. Nf3 {[%clk 0:02:08]}  Nbd7 {[%clk 0:02:59]} 7. Be3 {[%clk 0:02:09]}  e5 {[%clk 0:03:00]} 8. d5 {[%clk 0:02:09]}  Nc5 {[%clk 0:03:01]} 9. Qc2 {[%clk 0:02:09]}  a5 {[%clk 0:02:59]} 10. Nd2 {[%clk 0:02:07]}  Ne8 {[%clk 0:02:59]} 11. Be2 {[%clk 0:02:07]}  f5 {[%clk 0:02:57]} 12. f3 {[%clk 0:02:06]}  f4 {[%clk 0:02:57]} 13. Bf2 {[%clk 0:02:06]}  b6 {[%clk 0:02:50]} 14. b3 {[%clk 0:02:07]}  g5 {[%clk 0:02:49]} 15. a3 {[%clk 0:02:05]}  Bd7 {[%clk 0:02:47]} 16. O-O {[%clk 0:02:05]}  h5 {[%clk 0:02:45]} 17. b4 {[%clk 0:02:04]}  axb4 {[%clk 0:02:45]} 18. axb4 {[%clk 0:02:05]}  Rxa1 {[%clk 0:02:44]} 19. Rxa1 {[%clk 0:02:06]}  Nb7 {[%clk 0:02:39]} 20. Ra7 {[%clk 0:02:07]}  Bc8 {[%clk 0:02:33]} 21. Nb5 {[%clk 0:02:02]}  Nf6 {[%clk 0:02:22]} 22. Ra8 {[%clk 0:01:56]}  Qe7 {[%clk 0:02:18]} 23. Na7 {[%clk 0:01:55]}  Bd7 {[%clk 0:02:07]} 24. Rxf8+ {[%clk 0:01:46]}  Bxf8 {[%clk 0:02:01]} 25. Nb5 {[%clk 0:01:45]}  g4 {[%clk 0:02:01]} 26. Bf1 {[%clk 0:01:43]}  gxh3 {[%clk 0:01:47]} 27. gxh3 {[%clk 0:01:30]}  Qg7+ {[%clk 0:01:37]} 28. Kh2 {[%clk 0:01:30]}  Bxb5 {[%clk 0:01:30]} 29. cxb5 {[%clk 0:01:28]}  Nd8 {[%clk 0:01:08]} 30. Bh4 {[%clk 0:01:28]}  Qf7 {[%clk 0:01:04]} 31. Nb3 {[%clk 0:01:09]}  Bg7 {[%clk 0:00:08]} 32. Na5 {[%clk 0:00:59]}  Qd7 {[%clk 0:00:05]} 33. Nc6 {[%clk 0:00:58]}  Nf7 {[%clk 0:00:04]} 34. Nb8 {[%clk 0:00:53]}  Qc8 {[%clk 0:00:04]} 35. Na6 {[%clk 0:00:50]}  Ne8 {[%clk 0:00:04]} 36. Qc6 {[%clk 0:00:49]}  Bf8 {[%clk 0:00:03]} 37. Be2 {[%clk 0:00:45]}  Bg7 {[%clk 0:00:02]} 38. Bf2 {[%clk 0:00:38]}  Qd8 {[%clk 0:00:02]} 39. Bg1 {[%clk 0:00:36]}  Kf8 {[%clk 0:00:01]} 40. Bf1 {[%clk 0:00:34]}  Bf6 {[%clk 0:00:02]} 41. Bf2 {[%clk 0:00:33]}  Qe7 {[%clk 0:00:02]} 42. Nb8 {[%clk 0:00:34]}  Nd8 {[%clk 0:00:02]} 43. Qc2 {[%clk 0:00:32]}  Bh4 {[%clk 0:00:02]} 44. Nc6 {[%clk 0:00:27]}  Nxc6 {[%clk 0:00:03]} 45. bxc6 {[%clk 0:00:27]}  Bxf2 {[%clk 0:00:02]} 46. Qxf2 {[%clk 0:00:24]}  Qg5 {[%clk 0:00:03]} 47. h4 {[%clk 0:00:24]}  Qg7 {[%clk 0:00:03]} 48. Bh3 {[%clk 0:00:22]}  Nf6 {[%clk 0:00:02]} 49. Bf5 {[%clk 0:00:22]}  Qg3+ {[%clk 0:00:02]} 50. Qxg3 {[%clk 0:00:18]}  fxg3+ {[%clk 0:00:02]} 51. Kxg3 {[%clk 0:00:18]}  Ke7 {[%clk 0:00:03]} 52. f4 {[%clk 0:00:18]}  exf4+ {[%clk 0:00:03]} 53. Kxf4 {[%clk 0:00:18]}  Kf7 {[%clk 0:00:03]} 54. Kg5 {[%clk 0:00:19]}  Kg7 {[%clk 0:00:03]} 55. Bg6 {[%clk 0:00:18]}  Ng4 {[%clk 0:00:04]} 56. Bxh5 {[%clk 0:00:18]}  Nf2 {[%clk 0:00:04]} 57. Kf4 {[%clk 0:00:15]}  Nd3+ {[%clk 0:00:05]} 58. Ke3 {[%clk 0:00:12]}  Nxb4 {[%clk 0:00:04]} 59. Be2 {[%clk 0:00:11]}  Na2 {[%clk 0:00:05]} 60. h5 {[%clk 0:00:10]}  Nc1 {[%clk 0:00:04]} 61. Kd2 {[%clk 0:00:07]}  Nb3+ {[%clk 0:00:03]} 62. Kc3 {[%clk 0:00:07]}  Nc5 {[%clk 0:00:03]} 63. Kd4 {[%clk 0:00:07]}  Nb3+ {[%clk 0:00:03]} 64. Kc3 {[%clk 0:00:07]}  Nc5 {[%clk 0:00:03]} 65. Kd4 {[%clk 0:00:07]}  Na4 {[%clk 0:00:04]} 66. e5 {[%clk 0:00:07]}  dxe5+ {[%clk 0:00:03]} 67. Kxe5 {[%clk 0:00:08]}  Nc3 {[%clk 0:00:03]} 68. d6 {[%clk 0:00:08]}  cxd6+ {[%clk 0:00:03]} 69. Kxd6 {[%clk 0:00:07]}  Nxe2 {[%clk 0:00:02]} 70. c7 {[%clk 0:00:07]}  Nf4 {[%clk 0:00:01]} 71. c8=Q {[%clk 0:00:07]}  Kh6 {[%clk 0:00:01]} 72. Qc6 {[%clk 0:00:07]}  Nxh5 {[%clk 0:00:02]} 73. Kc7+ {[%clk 0:00:06]}  Kg5 {[%clk 0:00:02]} 74. Kxb6 {[%clk 0:00:05]}  Nf4 {[%clk 0:00:03]} 75. Qc5+ {[%clk 0:00:06]}  Kg4 {[%clk 0:00:04]} 76. Qf8 {[%clk 0:00:06]}  Kf3 {[%clk 0:00:05]} 77. Kc5 {[%clk 0:00:06]}  Ke4 {[%clk 0:00:05]} 78. Kc4 {[%clk 0:00:06]}  Kf3 {[%clk 0:00:06]} 79. Qf5 {[%clk 0:00:05]}  Kg3 {[%clk 0:00:05]} 80. Qg5+ {[%clk 0:00:05]}  Kf3 {[%clk 0:00:05]} 81. Kc3 {[%clk 0:00:04]}  Ne2+ {[%clk 0:00:06]} 82. Kd2 {[%clk 0:00:04]}  Nd4 {[%clk 0:00:06]} 83. Qe3+ {[%clk 0:00:04]}  Kg2 {[%clk 0:00:05]} 84. Qxd4 {[%clk 0:00:04]}  Kf1 {[%clk 0:00:05]} 85. Qe5 {[%clk 0:00:04]}  Kf2 {[%clk 0:00:06]} 86. Kd3 {[%clk 0:00:04]}  Kf3 {[%clk 0:00:07]} 87. Qe3+ {[%clk 0:00:04]}  Kg4 {[%clk 0:00:07]} 88. Qf2 {[%clk 0:00:05]}  Kg5 {[%clk 0:00:08]} 89. Ke4 {[%clk 0:00:05]}  Kg6 {[%clk 0:00:08]} 90. Ke5 {[%clk 0:00:06]}  Kg7 {[%clk 0:00:09]} 91. Ke6 {[%clk 0:00:06]}  Kh6 {[%clk 0:00:10]} 92. Qg2 {[%clk 0:00:07]}  Kh7 {[%clk 0:00:11]} 93. Kf7 {[%clk 0:00:07]}  Kh6 {[%clk 0:00:11]} 94. Qg6# {[%clk 0:00:07]} 1-0


[Site "https://www.chess.com"]

[Event "Titled Tuesday Blitz January 10 Late 2023"]
[White "Dias, Joao Batista"]
[Black "Golizadeh, Asghar"]
[WhiteFideId "2108240"]
[BlackFideId "12505269"]
[WhiteElo "1796"]
[BlackElo "2455"]
[Result "1/2-1/2"]
[Round "03"]
[TimeControl "180+2"]
[Date "2023.01.10"]
[WhiteClock "0:00:04"]
[BlackClock "0:00:01"]

1. e4 {[%clk 0:00:00]}  c5 {[%clk 0:00:00]} 2. Nf3 {[%clk 0:03:00]}  d6 {[%clk 0:02:58]} 3. d4 {[%clk 0:03:00]}  cxd4 {[%clk 0:02:59]} 4. Nxd4 {[%clk 0:03:00]}  Nf6 {[%clk 0:02:59]} 5. Nc3 {[%clk 0:03:01]}  e5 {[%clk 0:02:59]} 6. Nb3 {[%clk 0:03:00]}  Be6 {[%clk 0:03:00]} 7. Bg5 {[%clk 0:02:59]}  Be7 {[%clk 0:03:01]} 8. Bd3 {[%clk 0:02:59]}  Nc6 {[%clk 0:03:00]} 9. O-O {[%clk 0:02:58]}  O-O {[%clk 0:02:58]} 10. Qe2 {[%clk 0:02:58]}  h6 {[%clk 0:02:58]} 11. Bxf6 {[%clk 0:02:53]}  Bxf6 {[%clk 0:02:55]} 12. Rad1 {[%clk 0:02:53]}  Bg5 {[%clk 0:02:55]} 13. g3 {[%clk 0:02:52]}  Bh3 {[%clk 0:02:52]} 14. Rfe1 {[%clk 0:02:51]}  Qc8 {[%clk 0:02:51]} 15. Nd5 {[%clk 0:02:49]}  g6 {[%clk 0:02:48]} 16. c3 {[%clk 0:02:45]}  Kg7 {[%clk 0:02:32]} 17. Nd2 {[%clk 0:02:44]}  Rh8 {[%clk 0:02:32]} 18. Nc4 {[%clk 0:02:43]}  Qe6 {[%clk 0:02:30]} 19. Nce3 {[%clk 0:02:36]}  Rag8 {[%clk 0:02:28]} 20. Qf3 {[%clk 0:02:35]}  h5 {[%clk 0:02:20]} 21. Bc4 {[%clk 0:02:11]}  Qd7 {[%clk 0:02:18]} 22. Be2 {[%clk 0:01:59]}  h4 {[%clk 0:02:02]} 23. g4 {[%clk 0:01:55]}  f5 {[%clk 0:02:01]} 24. Qxh3 {[%clk 0:01:53]}  f4 {[%clk 0:01:30]} 25. Nc4 {[%clk 0:01:42]}  b5 {[%clk 0:01:29]} 26. Nd2 {[%clk 0:01:36]}  a6 {[%clk 0:01:22]} 27. Nf3 {[%clk 0:01:30]}  Bd8 {[%clk 0:01:20]} 28. Kh1 {[%clk 0:01:29]}  Qa7 {[%clk 0:01:17]} 29. Kg1 {[%clk 0:01:24]}  Qd7 {[%clk 0:00:59]} 30. a3 {[%clk 0:01:10]}  Kf8 {[%clk 0:00:54]} 31. Rd2 {[%clk 0:01:10]}  Na5 {[%clk 0:00:46]} 32. Kg2 {[%clk 0:01:07]}  Nb3 {[%clk 0:00:39]} 33. Rdd1 {[%clk 0:00:54]}  Nc5 {[%clk 0:00:38]} 34. g5 {[%clk 0:00:52]}  Qxh3+ {[%clk 0:00:38]} 35. Kxh3 {[%clk 0:00:51]}  Nxe4 {[%clk 0:00:32]} 36. Kg2 {[%clk 0:00:51]}  h3+ {[%clk 0:00:33]} 37. Kf1 {[%clk 0:00:45]}  Nxg5 {[%clk 0:00:33]} 38. Nxg5 {[%clk 0:00:42]}  Bxg5 {[%clk 0:00:32]} 39. Nc7 {[%clk 0:00:41]}  Ke7 {[%clk 0:00:33]} 40. Bg4 {[%clk 0:00:40]}  Rh4 {[%clk 0:00:26]} 41. f3 {[%clk 0:00:36]}  Rf8 {[%clk 0:00:24]} 42. Ne6 {[%clk 0:00:36]}  Rb8 {[%clk 0:00:21]} 43. Nxg5 {[%clk 0:00:33]}  a5 {[%clk 0:00:13]} 44. Ne4 {[%clk 0:00:33]}  b4 {[%clk 0:00:14]} 45. axb4 {[%clk 0:00:27]}  axb4 {[%clk 0:00:14]} 46. Rxd6 {[%clk 0:00:24]}  bxc3 {[%clk 0:00:15]} 47. Re6+ {[%clk 0:00:24]}  Kf7 {[%clk 0:00:15]} 48. Rf6+ {[%clk 0:00:24]}  Kg7 {[%clk 0:00:15]} 49. bxc3 {[%clk 0:00:22]}  Rb2 {[%clk 0:00:15]} 50. Rd1 {[%clk 0:00:22]}  Rxh2 {[%clk 0:00:15]} 51. Rd7+ {[%clk 0:00:22]}  Kh6 {[%clk 0:00:14]} 52. Rdd6 {[%clk 0:00:21]}  Rh1+ {[%clk 0:00:14]} 53. Ke2 {[%clk 0:00:17]}  Rxg4 {[%clk 0:00:13]} 54. fxg4 {[%clk 0:00:17]}  h2 {[%clk 0:00:03]} 55. Rxg6+ {[%clk 0:00:17]}  Kh7 {[%clk 0:00:03]} 56. Ng5+ {[%clk 0:00:16]}  Kh8 {[%clk 0:00:04]} 57. Rd7 {[%clk 0:00:15]}  Re1+ {[%clk 0:00:05]} 58. Kxe1 {[%clk 0:00:14]}  h1=Q+ {[%clk 0:00:03]} 59. Ke2 {[%clk 0:00:14]}  Qg2+ {[%clk 0:00:03]} 60. Kd3 {[%clk 0:00:15]}  Qf1+ {[%clk 0:00:03]} 61. Ke4 {[%clk 0:00:15]}  Qb1+ {[%clk 0:00:03]} 62. Kxe5 {[%clk 0:00:15]}  Qxg6 {[%clk 0:00:03]} 63. Nf7+ {[%clk 0:00:13]}  Kg8 {[%clk 0:00:03]} 64. Nd6 {[%clk 0:00:12]}  Qg5+ {[%clk 0:00:04]} 65. Ke6 {[%clk 0:00:10]}  Qxg4+ {[%clk 0:00:03]} 66. Nf5 {[%clk 0:00:10]}  f3 {[%clk 0:00:03]} 67. Rd8+ {[%clk 0:00:08]}  Kh7 {[%clk 0:00:03]} 68. Rd7+ {[%clk 0:00:06]}  Kh8 {[%clk 0:00:03]} 69. Rd8+ {[%clk 0:00:05]}  Kh7 {[%clk 0:00:03]} 70. Rd7+ {[%clk 0:00:03]}  Kh8 {[%clk 0:00:03]} 71. Rd8+ {[%clk 0:00:04]}  Kh7 {[%clk 0:00:01]} 1/2-1/2


[Site "https://www.chess.com"]

[Event "Titled Tuesday Blitz January 10 Late 2023"]
[White "Guimaraes, Wagner Peixoto"]
[Black "Mikhailov, Viacheslav"]
[WhiteFideId "2100940"]
[BlackFideId "4187369"]
[WhiteElo "2194"]
[BlackElo "2428"]
[Result "0-1"]
[Round "03"]
[TimeControl "180+2"]
[Date "2023.01.10"]
[WhiteClock "0:00:03"]
[BlackClock "0:00:15"]

1. e4 {[%clk 0:00:00]}  c5 {[%clk 0:00:00]} 2. Nf3 {[%clk 0:03:00]}  Nc6 {[%clk 0:02:59]} 3. d4 {[%clk 0:03:00]}  cxd4 {[%clk 0:02:59]} 4. Nxd4 {[%clk 0:03:01]}  g6 {[%clk 0:03:00]} 5. Nc3 {[%clk 0:03:01]}  Bg7 {[%clk 0:03:00]} 6. Be3 {[%clk 0:02:59]}  Nf6 {[%clk 0:03:00]} 7. Bc4 {[%clk 0:03:00]}  O-O {[%clk 0:03:01]} 8. Bb3 {[%clk 0:02:59]}  d6 {[%clk 0:03:01]} 9. h3 {[%clk 0:02:59]}  Nd7 {[%clk 0:03:02]} 10. O-O {[%clk 0:02:59]}  a5 {[%clk 0:03:02]} 11. Qd2 {[%clk 0:02:59]}  Nc5 {[%clk 0:02:59]} 12. Nxc6 {[%clk 0:02:48]}  bxc6 {[%clk 0:02:58]} 13. Bxc5 {[%clk 0:02:42]}  dxc5 {[%clk 0:02:59]} 14. Qxd8 {[%clk 0:02:42]}  Rxd8 {[%clk 0:02:58]} 15. Na4 {[%clk 0:02:42]}  Ba6 {[%clk 0:02:59]} 16. c4 {[%clk 0:02:39]}  Bd4 {[%clk 0:02:56]} 17. Rfd1 {[%clk 0:02:35]}  Rdb8 {[%clk 0:02:45]} 18. g3 {[%clk 0:02:29]}  Rb4 {[%clk 0:02:43]} 19. Rac1 {[%clk 0:02:22]}  Bc8 {[%clk 0:02:43]} 20. Kg2 {[%clk 0:02:21]}  Be6 {[%clk 0:02:33]} 21. Rd2 {[%clk 0:02:14]}  Kg7 {[%clk 0:02:32]} 22. f4 {[%clk 0:02:01]}  h5 {[%clk 0:02:28]} 23. Rcc2 {[%clk 0:01:58]}  Rab8 {[%clk 0:02:27]} 24. h4 {[%clk 0:01:48]}  Bg4 {[%clk 0:02:26]} 25. Rd3 {[%clk 0:01:37]}  e5 {[%clk 0:02:18]} 26. Rdd2 {[%clk 0:01:24]}  Re8 {[%clk 0:02:11]} 27. Nc3 {[%clk 0:00:53]}  exf4 {[%clk 0:02:08]} 28. gxf4 {[%clk 0:00:42]}  Bxc3 {[%clk 0:02:06]} 29. bxc3 {[%clk 0:00:42]}  Rb7 {[%clk 0:02:01]} 30. Ba4 {[%clk 0:00:42]}  Rb6 {[%clk 0:02:00]} 31. e5 {[%clk 0:00:40]}  Be6 {[%clk 0:01:45]} 32. Rd6 {[%clk 0:00:34]}  Bxc4 {[%clk 0:01:43]} 33. Kg3 {[%clk 0:00:32]}  Re6 {[%clk 0:01:44]} 34. Rcd2 {[%clk 0:00:26]}  Bd5 {[%clk 0:01:30]} 35. a3 {[%clk 0:00:24]}  Rb1 {[%clk 0:01:25]} 36. Rxe6 {[%clk 0:00:17]}  fxe6 {[%clk 0:01:18]} 37. c4 {[%clk 0:00:12]}  Bxc4 {[%clk 0:01:19]} 38. Rd7+ {[%clk 0:00:10]}  Kf8 {[%clk 0:01:16]} 39. Bxc6 {[%clk 0:00:09]}  Rb3+ {[%clk 0:01:16]} 40. Kf2 {[%clk 0:00:09]}  Rxa3 {[%clk 0:01:16]} 41. Be4 {[%clk 0:00:08]}  Bd5 {[%clk 0:01:17]} 42. Bxd5 {[%clk 0:00:04]}  exd5 {[%clk 0:01:01]} 43. Rxd5 {[%clk 0:00:04]}  c4 {[%clk 0:01:02]} 44. Rd7 {[%clk 0:00:03]}  c3 {[%clk 0:01:02]} 45. Rc7 {[%clk 0:00:03]}  Ra2+ {[%clk 0:01:01]} 46. Ke3 {[%clk 0:00:03]}  c2 {[%clk 0:00:51]} 47. Kd2 {[%clk 0:00:03]}  Ra4 {[%clk 0:00:52]} 48. Ke3 {[%clk 0:00:02]}  Ra2 {[%clk 0:00:42]} 49. Kd2 {[%clk 0:00:02]}  c1=Q+ {[%clk 0:00:31]} 50. Kxc1 {[%clk 0:00:02]}  Rh2 {[%clk 0:00:16]} 51. Ra7 {[%clk 0:00:02]}  Rxh4 {[%clk 0:00:17]} 52. Rxa5 {[%clk 0:00:02]}  Rxf4 {[%clk 0:00:17]} 53. Kd2 {[%clk 0:00:03]}  h4 {[%clk 0:00:17]} 54. Ke3 {[%clk 0:00:03]}  Rf5 {[%clk 0:00:16]} 55. Ke4 {[%clk 0:00:03]}  h3 {[%clk 0:00:15]} 0-1


[Site "https://www.chess.com"]

[Event "Titled Tuesday Blitz January 10 Late 2023"]
[White "Zanette, Edgard Vinicius"]
[Black "Suvorov, Alexander"]
[WhiteFideId "2109263"]
[BlackFideId "12977063"]
[WhiteElo "2085"]
[BlackElo "2338"]
[Result "0-1"]
[Round "03"]
[TimeControl "180+2"]
[Date "2023.01.10"]
[WhiteClock "0:00:09"]
[BlackClock "0:00:12"]

1. e4 {[%clk 0:00:00]}  e5 {[%clk 0:00:00]} 2. Nf3 {[%clk 0:02:56]}  Nc6 {[%clk 0:02:57]} 3. Bb5 {[%clk 0:02:55]}  Nge7 {[%clk 0:02:57]} 4. c3 {[%clk 0:02:55]}  a6 {[%clk 0:02:57]} 5. Ba4 {[%clk 0:02:55]}  b5 {[%clk 0:02:56]} 6. Bb3 {[%clk 0:02:54]}  Ng6 {[%clk 0:02:56]} 7. d4 {[%clk 0:02:54]}  exd4 {[%clk 0:02:48]} 8. cxd4 {[%clk 0:02:52]}  Bb4+ {[%clk 0:02:40]} 9. Bd2 {[%clk 0:02:51]}  O-O {[%clk 0:02:38]} 10. O-O {[%clk 0:02:50]}  Bxd2 {[%clk 0:02:33]} 11. Qxd2 {[%clk 0:02:47]}  Bb7 {[%clk 0:02:25]} 12. a4 {[%clk 0:02:46]}  Qe7 {[%clk 0:02:23]} 13. e5 {[%clk 0:02:18]}  Nb4 {[%clk 0:02:17]} 14. d5 {[%clk 0:02:12]}  c5 {[%clk 0:02:06]} 15. d6 {[%clk 0:01:59]}  Qe8 {[%clk 0:01:37]} 16. Re1 {[%clk 0:01:29]}  Bxf3 {[%clk 0:01:29]} 17. gxf3 {[%clk 0:01:13]}  Kh8 {[%clk 0:01:28]} 18. f4 {[%clk 0:01:13]}  f6 {[%clk 0:00:58]} 19. e6 {[%clk 0:01:09]}  dxe6 {[%clk 0:00:51]} 20. axb5 {[%clk 0:00:54]}  Qxb5 {[%clk 0:00:51]} 21. Nc3 {[%clk 0:00:54]}  Qc6 {[%clk 0:00:45]} 22. Rxe6 {[%clk 0:00:51]}  Rad8 {[%clk 0:00:41]} 23. Bd5 {[%clk 0:00:46]}  Rxd6 {[%clk 0:00:41]} 24. Rxd6 {[%clk 0:00:38]}  Qxd6 {[%clk 0:00:35]} 25. Rd1 {[%clk 0:00:28]}  Nxf4 {[%clk 0:00:35]} 26. Bf3 {[%clk 0:00:22]}  Qe5 {[%clk 0:00:31]} 27. Re1 {[%clk 0:00:20]}  Qf5 {[%clk 0:00:27]} 28. Be4 {[%clk 0:00:19]}  Qg5+ {[%clk 0:00:25]} 29. Kh1 {[%clk 0:00:18]}  h6 {[%clk 0:00:23]} 30. Rg1 {[%clk 0:00:19]}  Qh4 {[%clk 0:00:18]} 31. Qe3 {[%clk 0:00:18]}  Nh3 {[%clk 0:00:18]} 32. f3 {[%clk 0:00:17]}  Nxg1 {[%clk 0:00:15]} 33. Qxg1 {[%clk 0:00:14]}  Rd8 {[%clk 0:00:13]} 34. Qxc5 {[%clk 0:00:14]}  Qe1+ {[%clk 0:00:13]} 35. Kg2 {[%clk 0:00:13]}  Nc2 {[%clk 0:00:13]} 36. Qc7 {[%clk 0:00:13]}  Ne3+ {[%clk 0:00:12]} 37. Kh3 {[%clk 0:00:09]}  Qf1+ {[%clk 0:00:12]} 38. Kg3 {[%clk 0:00:09]}  Qg1+ {[%clk 0:00:12]} 39. Kf4 {[%clk 0:00:09]}  Rg8 {[%clk 0:00:12]} 40. h4 {[%clk 0:00:09]}  Qh2+ {[%clk 0:00:12]} 0-1


[Site "https://www.chess.com"]

[Event "Titled Tuesday Blitz January 10 Late 2023"]
[White "Colivet Gamboa, Julio Cesar"]
[Black "Rodriguez Fontecha, Marcos"]
[WhiteFideId "3949583"]
[BlackFideId "2256576"]
[WhiteElo "1844"]
[BlackElo "2309"]
[Result "1-0"]
[Round "03"]
[TimeControl "180+2"]
[Date "2023.01.10"]
[WhiteClock "0:00:20"]
[BlackClock "0:00:05"]

1. c4 {[%clk 0:00:00]}  e5 {[%clk 0:00:00]} 2. Nc3 {[%clk 0:03:00]}  Nc6 {[%clk 0:02:58]} 3. g3 {[%clk 0:03:00]}  g6 {[%clk 0:02:57]} 4. Bg2 {[%clk 0:03:00]}  Bg7 {[%clk 0:02:58]} 5. e4 {[%clk 0:03:01]}  d6 {[%clk 0:02:59]} 6. Nge2 {[%clk 0:03:01]}  Be6 {[%clk 0:02:59]} 7. d3 {[%clk 0:03:02]}  Qd7 {[%clk 0:02:59]} 8. O-O {[%clk 0:03:03]}  Bh3 {[%clk 0:03:00]} 9. Nd5 {[%clk 0:03:03]}  Bxg2 {[%clk 0:02:59]} 10. Kxg2 {[%clk 0:03:03]}  Nd8 {[%clk 0:02:58]} 11. f4 {[%clk 0:03:04]}  c6 {[%clk 0:02:57]} 12. Ndc3 {[%clk 0:03:04]}  Ne7 {[%clk 0:02:57]} 13. f5 {[%clk 0:03:05]}  gxf5 {[%clk 0:02:51]} 14. exf5 {[%clk 0:03:05]}  Nxf5 {[%clk 0:02:48]} 15. Ne4 {[%clk 0:03:05]}  Ne7 {[%clk 0:02:47]} 16. Be3 {[%clk 0:03:04]}  Ne6 {[%clk 0:02:05]} 17. Bh6 {[%clk 0:02:54]}  O-O-O {[%clk 0:02:02]} 18. Bxg7 {[%clk 0:02:42]}  Nxg7 {[%clk 0:01:45]} 19. Rxf7 {[%clk 0:02:41]}  Ngf5 {[%clk 0:01:46]} 20. Qd2 {[%clk 0:02:41]}  Rhg8 {[%clk 0:01:34]} 21. Kh1 {[%clk 0:02:40]}  Kb8 {[%clk 0:01:24]} 22. Rf1 {[%clk 0:02:18]}  d5 {[%clk 0:01:23]} 23. Nf6 {[%clk 0:02:12]}  Qe6 {[%clk 0:01:17]} 24. Nxg8 {[%clk 0:01:50]}  Rxg8 {[%clk 0:01:12]} 25. Rxh7 {[%clk 0:01:48]}  Qg6 {[%clk 0:01:04]} 26. Rxe7 {[%clk 0:01:44]}  Nxe7 {[%clk 0:00:58]} 27. Qe3 {[%clk 0:01:29]}  e4 {[%clk 0:00:59]} 28. Nf4 {[%clk 0:01:29]}  Qd6 {[%clk 0:00:52]} 29. dxe4 {[%clk 0:01:26]}  d4 {[%clk 0:00:51]} 30. Qe2 {[%clk 0:01:24]}  c5 {[%clk 0:00:47]} 31. e5 {[%clk 0:01:21]}  Qc6+ {[%clk 0:00:43]} 32. Kg1 {[%clk 0:01:20]}  Nf5 {[%clk 0:00:41]} 33. e6 {[%clk 0:01:20]}  Ne3 {[%clk 0:00:38]} 34. Rf2 {[%clk 0:01:10]}  Re8 {[%clk 0:00:38]} 35. Qf3 {[%clk 0:01:08]}  Qa4 {[%clk 0:00:29]} 36. b3 {[%clk 0:01:06]}  Qb4 {[%clk 0:00:29]} 37. h4 {[%clk 0:01:03]}  Qe1+ {[%clk 0:00:26]} 38. Kh2 {[%clk 0:00:46]}  Qxf2+ {[%clk 0:00:23]} 39. Qxf2 {[%clk 0:00:45]}  Ng4+ {[%clk 0:00:20]} 40. Kg2 {[%clk 0:00:44]}  Nxf2 {[%clk 0:00:21]} 41. Kxf2 {[%clk 0:00:44]}  Kc7 {[%clk 0:00:22]} 42. Kf3 {[%clk 0:00:45]}  Kd6 {[%clk 0:00:21]} 43. Ke4 {[%clk 0:00:45]}  Rg8 {[%clk 0:00:22]} 44. Kf3 {[%clk 0:00:45]}  d3 {[%clk 0:00:21]} 45. Nxd3 {[%clk 0:00:42]}  Kxe6 {[%clk 0:00:17]} 46. Nxc5+ {[%clk 0:00:42]}  Ke5 {[%clk 0:00:18]} 47. Nxb7 {[%clk 0:00:42]}  Rf8+ {[%clk 0:00:18]} 48. Kg2 {[%clk 0:00:42]}  Ke4 {[%clk 0:00:18]} 49. g4 {[%clk 0:00:42]}  Ke3 {[%clk 0:00:16]} 50. g5 {[%clk 0:00:39]}  Kf4 {[%clk 0:00:16]} 51. Nd6 {[%clk 0:00:36]}  Kg4 {[%clk 0:00:15]} 52. c5 {[%clk 0:00:30]}  Rd8 {[%clk 0:00:14]} 53. g6 {[%clk 0:00:25]}  Kxh4 {[%clk 0:00:09]} 54. g7 {[%clk 0:00:20]}  Kh5 {[%clk 0:00:05]} 55. c6 {[%clk 0:00:20]} 1-0


[Site "https://www.chess.com"]

[Event "Titled Tuesday Blitz January 10 Late 2023"]
[White "Jovic, Stanoje"]
[Black "Jenkins, Drake"]
[WhiteFideId "905020"]
[BlackFideId "2022397"]
[WhiteElo "2075"]
[BlackElo "2130"]
[Result "1-0"]
[Round "03"]
[TimeControl "180+2"]
[Date "2023.01.10"]
[WhiteClock "0:00:19"]
[BlackClock "0:00:05"]

1. c4 {[%clk 0:00:00]}  Nf6 {[%clk 0:00:00]} 2. g3 {[%clk 0:03:00]}  c5 {[%clk 0:02:59]} 3. Bg2 {[%clk 0:03:01]}  g6 {[%clk 0:02:59]} 4. Nc3 {[%clk 0:03:01]}  Bg7 {[%clk 0:02:59]} 5. Nf3 {[%clk 0:03:00]}  d5 {[%clk 0:02:59]} 6. cxd5 {[%clk 0:03:01]}  Nxd5 {[%clk 0:02:59]} 7. O-O {[%clk 0:03:00]}  Nc6 {[%clk 0:03:00]} 8. Nxd5 {[%clk 0:02:59]}  Qxd5 {[%clk 0:03:00]} 9. d3 {[%clk 0:02:58]}  O-O {[%clk 0:02:59]} 10. Be3 {[%clk 0:02:59]}  Qd6 {[%clk 0:02:58]} 11. Rc1 {[%clk 0:02:59]}  b6 {[%clk 0:02:54]} 12. d4 {[%clk 0:02:58]}  Bb7 {[%clk 0:02:51]} 13. dxc5 {[%clk 0:02:57]}  Qxd1 {[%clk 0:02:24]} 14. Rfxd1 {[%clk 0:02:56]}  b5 {[%clk 0:02:23]} 15. Rd7 {[%clk 0:02:56]}  Rab8 {[%clk 0:02:10]} 16. Bf4 {[%clk 0:02:49]}  e5 {[%clk 0:01:51]} 17. Be3 {[%clk 0:02:48]}  Rfc8 {[%clk 0:01:50]} 18. Ng5 {[%clk 0:02:25]}  Na5 {[%clk 0:00:51]} 19. Nxf7 {[%clk 0:02:19]}  Bxg2 {[%clk 0:00:21]} 20. Kxg2 {[%clk 0:02:05]}  Nc4 {[%clk 0:00:17]} 21. Rxa7 {[%clk 0:02:04]}  Nxe3+ {[%clk 0:00:17]} 22. fxe3 {[%clk 0:01:49]}  e4 {[%clk 0:00:16]} 23. Nd6 {[%clk 0:01:50]}  Rc6 {[%clk 0:00:13]} 24. b4 {[%clk 0:01:42]}  Bf8 {[%clk 0:00:10]} 25. Nxe4 {[%clk 0:01:36]}  Re8 {[%clk 0:00:03]} 26. Kf3 {[%clk 0:01:33]}  Rce6 {[%clk 0:00:04]} 27. Nc3 {[%clk 0:01:29]}  Rxe3+ {[%clk 0:00:03]} 28. Kf2 {[%clk 0:01:03]}  Bh6 {[%clk 0:00:04]} 29. Rc2 {[%clk 0:01:02]}  Rf8+ {[%clk 0:00:04]} 30. Kg2 {[%clk 0:01:00]}  Re6 {[%clk 0:00:04]} 31. Nxb5 {[%clk 0:00:59]}  Ref6 {[%clk 0:00:03]} 32. e4 {[%clk 0:00:53]}  Be3 {[%clk 0:00:03]} 33. Nd6 {[%clk 0:00:53]}  Rf2+ {[%clk 0:00:04]} 34. Rxf2 {[%clk 0:00:48]}  Rxf2+ {[%clk 0:00:04]} 35. Kh3 {[%clk 0:00:47]}  Rb2 {[%clk 0:00:05]} 36. Ra3 {[%clk 0:00:47]}  Bg1 {[%clk 0:00:05]} 37. Kg4 {[%clk 0:00:41]}  Bxh2 {[%clk 0:00:06]} 38. c6 {[%clk 0:00:39]}  Rc2 {[%clk 0:00:05]} 39. b5 {[%clk 0:00:39]}  Kg7 {[%clk 0:00:05]} 40. Ra7+ {[%clk 0:00:37]}  Kf6 {[%clk 0:00:05]} 41. c7 {[%clk 0:00:34]}  h5+ {[%clk 0:00:05]} 42. Kf3 {[%clk 0:00:33]}  Bg1 {[%clk 0:00:04]} 43. Ne8+ {[%clk 0:00:33]}  Ke5 {[%clk 0:00:04]} 44. g4 {[%clk 0:00:29]}  h4 {[%clk 0:00:05]} 45. g5 {[%clk 0:00:23]}  Rf2+ {[%clk 0:00:04]} 46. Kg4 {[%clk 0:00:21]}  Rf4+ {[%clk 0:00:04]} 47. Kh3 {[%clk 0:00:20]}  Bf2 {[%clk 0:00:05]} 48. c8=Q {[%clk 0:00:20]}  Rf3+ {[%clk 0:00:05]} 49. Kg2 {[%clk 0:00:19]} 1-0


[Site "https://www.chess.com"]